[Event "*** Titled Tuesday Blitz"]
[Site "Chess.com"]
[Date "2020.11.24"]
[Round "11"]
[White "guillembaches"]
[Black "Escanor89"]
[Result "1-0"]
[WhiteElo "2419"]
[BlackElo "2505"]
[TimeControl "180+1"]
[EndTime "12:25:09 PST"]
[Termination "guillembaches won on time"]

1. e4 {[%clk 0:03:00.9]} 1... c5 {[%clk 0:02:59.8]} 2. Nf3 {[%clk 0:03:01.2]}
2... d6 {[%clk 0:02:59.6]} 3. d4 {[%clk 0:03:01]} 3... cxd4 {[%clk 0:02:59.9]}
4. Nxd4 {[%clk 0:03:01.4]} 4... Nf6 {[%clk 0:03:00.4]} 5. Nc3 {[%clk 0:03:01.7]}
5... Nc6 {[%clk 0:03:00.7]} 6. Bg5 {[%clk 0:02:59.6]} 6... Bd7 {[%clk
0:02:59.8]} 7. Qd2 {[%clk 0:02:59.1]} 7... Rc8 {[%clk 0:02:59.7]} 8. O-O-O
{[%clk 0:02:58.8]} 8... Nxd4 {[%clk 0:02:59]} 9. Qxd4 {[%clk 0:02:58.6]} 9...
Qa5 {[%clk 0:02:59.5]} 10. Bd2 {[%clk 0:02:53]} 10... Qc5 {[%clk 0:02:46.9]} 11.
Qxc5 {[%clk 0:02:46.6]} 11... dxc5 {[%clk 0:02:44.4]} 12. f3 {[%clk 0:02:33.3]}
12... Bc6 {[%clk 0:02:36.1]} 13. Bb5 {[%clk 0:02:26.7]} 13... e6 {[%clk
0:02:33.5]} 14. Bxc6+ {[%clk 0:02:22.9]} 14... Rxc6 {[%clk 0:02:33]} 15. Bg5
{[%clk 0:02:19.8]} 15... Be7 {[%clk 0:02:31.1]} 16. Rd2 {[%clk 0:02:17.7]} 16...
h6 {[%clk 0:02:21.8]} 17. Be3 {[%clk 0:02:06.5]} 17... a6 {[%clk 0:01:50.4]} 18.
Rhd1 {[%clk 0:02:03.1]} 18... Rc7 {[%clk 0:01:39.1]} 19. e5 {[%clk 0:01:51.9]}
19... Nh7 {[%clk 0:01:34.3]} 20. Ne4 {[%clk 0:01:46.5]} 20... O-O {[%clk
0:01:31.8]} 21. f4 {[%clk 0:01:34.9]} 21... Rfc8 {[%clk 0:01:28.4]} 22. g3
{[%clk 0:01:31.7]} 22... Nf8 {[%clk 0:01:27.8]} 23. Nd6 {[%clk 0:01:20.4]} 23...
Rb8 {[%clk 0:01:25.2]} 24. c4 {[%clk 0:01:17.2]} 24... b6 {[%clk 0:01:17.8]} 25.
Kc2 {[%clk 0:01:16.1]} 25... Rd8 {[%clk 0:01:11.7]} 26. h4 {[%clk 0:01:07.2]}
26... Bxd6 {[%clk 0:01:02.5]} 27. Rxd6 {[%clk 0:01:05.8]} 27... Rcd7 {[%clk
0:00:58.6]} 28. a3 {[%clk 0:00:59.7]} 28... Rxd6 {[%clk 0:00:57]} 29. Rxd6
{[%clk 0:00:55.2]} 29... Rxd6 {[%clk 0:00:56.8]} 30. exd6 {[%clk 0:00:55.1]}
30... Nd7 {[%clk 0:00:57.5]} 31. b4 {[%clk 0:00:54.3]} 31... Kf8 {[%clk
0:00:56.1]} 32. Kb3 {[%clk 0:00:49.5]} 32... Ke8 {[%clk 0:00:54.1]} 33. a4
{[%clk 0:00:45.4]} 33... a5 {[%clk 0:00:33.1]} 34. bxa5 {[%clk 0:00:26.3]} 34...
bxa5 {[%clk 0:00:32.9]} 35. Bd2 {[%clk 0:00:24.1]} 35... Nf6 {[%clk 0:00:19.1]}
36. Bxa5 {[%clk 0:00:22.1]} 36... Kd7 {[%clk 0:00:18.4]} 37. Bc7 {[%clk
0:00:22.1]} 37... Ne4 {[%clk 0:00:13]} 38. a5 {[%clk 0:00:21.1]} 38... Kc6
{[%clk 0:00:09.4]} 39. a6 {[%clk 0:00:20.1]} 39... Nf6 {[%clk 0:00:04.4]} 40.
Ka4 {[%clk 0:00:17.5]} 40... Nd7 {[%clk 0:00:03.2]} 41. Ka5 {[%clk 0:00:16.8]}
41... f6 {[%clk 0:00:03.2]} 42. a7 {[%clk 0:00:15.9]} 42... Kb7 {[%clk 0:00:03]}
43. Kb5 {[%clk 0:00:16.1]} 43... e5 {[%clk 0:00:01.2]} 44. fxe5 {[%clk
0:00:15.8]} 44... fxe5 {[%clk 0:00:01.2]} 45. a8=Q+ {[%clk 0:00:16]} 45... Kxa8
{[%clk 0:00:01.3]} 46. Kc6 {[%clk 0:00:16.3]} 1-0

[Event "*** Titled Tuesday Blitz"]
[Site "Chess.com"]
[Date "2020.11.24"]
[Round "11"]
[White "FMAntonio"]
[Black "BJthechessgod"]
[Result "1-0"]
[WhiteElo "2344"]
[BlackElo "2227"]
[TimeControl "180+1"]
[EndTime "12:25:11 PST"]
[Termination "FMAntonio won by checkmate"]

1. d4 {[%clk 0:03:00.9]} 1... Nf6 {[%clk 0:02:56.5]} 2. c4 {[%clk 0:03:00.6]}
2... e6 {[%clk 0:02:56]} 3. Nc3 {[%clk 0:03:00.4]} 3... Bb4 {[%clk 0:02:54.9]}
4. e3 {[%clk 0:03:00.6]} 4... O-O {[%clk 0:02:53.2]} 5. Ne2 {[%clk 0:03:00.5]}
5... d5 {[%clk 0:02:53]} 6. a3 {[%clk 0:03:00.6]} 6... Be7 {[%clk 0:02:51.5]} 7.
cxd5 {[%clk 0:02:58.3]} 7... Nxd5 {[%clk 0:02:52.4]} 8. e4 {[%clk 0:02:55.9]}
8... Nxc3 {[%clk 0:02:47.4]} 9. Nxc3 {[%clk 0:02:55.8]} 9... c5 {[%clk
0:02:48.3]} 10. Be3 {[%clk 0:02:53.9]} 10... cxd4 {[%clk 0:02:48.3]} 11. Bxd4
{[%clk 0:02:54.2]} 11... Nc6 {[%clk 0:02:48.9]} 12. Be3 {[%clk 0:02:53.6]} 12...
a6 {[%clk 0:02:49.3]} 13. Bd3 {[%clk 0:02:51.8]} 13... Ne5 {[%clk 0:02:48.3]}
14. Be2 {[%clk 0:02:50]} 14... b5 {[%clk 0:02:48.5]} 15. O-O {[%clk 0:02:49.7]}
15... Bb7 {[%clk 0:02:48.7]} 16. Qb3 {[%clk 0:02:44.5]} 16... Rc8 {[%clk
0:02:47.4]} 17. Rad1 {[%clk 0:02:41.4]} 17... Qa5 {[%clk 0:02:43.6]} 18. Bd4
{[%clk 0:02:29.5]} 18... Nc4 {[%clk 0:02:35.8]} 19. Bxc4 {[%clk 0:02:29]} 19...
Rxc4 {[%clk 0:02:36.7]} 20. a4 {[%clk 0:02:22.6]} 20... Rb4 {[%clk 0:02:26.9]}
21. Qc2 {[%clk 0:02:20.3]} 21... bxa4 {[%clk 0:02:18]} 22. Ne2 {[%clk
0:02:10.3]} 22... Rc8 {[%clk 0:02:14.5]} 23. Bc3 {[%clk 0:02:07.6]} 23... Qg5
{[%clk 0:02:00.8]} 24. f4 {[%clk 0:01:45.2]} 24... Bxe4 {[%clk 0:01:46.8]} 25.
fxg5 {[%clk 0:01:22.9]} 25... Bxc2 {[%clk 0:01:46.2]} 26. Rd7 {[%clk 0:01:20.7]}
26... Bc5+ {[%clk 0:01:43.9]} 27. Kh1 {[%clk 0:01:20.6]} 27... Bg6 {[%clk
0:01:12.3]} 28. Bxb4 {[%clk 0:01:17.6]} 28... Bxb4 {[%clk 0:01:13.2]} 29. Nf4
{[%clk 0:01:13.6]} 29... e5 {[%clk 0:00:34.6]} 30. Nxg6 {[%clk 0:01:07.9]} 30...
fxg6 {[%clk 0:00:35.5]} 31. h3 {[%clk 0:01:04.4]} 31... Bf8 {[%clk 0:00:24.3]}
32. Ra7 {[%clk 0:01:01.1]} 32... h6 {[%clk 0:00:16.8]} 33. Rxa6 {[%clk
0:00:56.4]} 33... Kh7 {[%clk 0:00:14.7]} 34. Rxa4 {[%clk 0:00:50.6]} 34... hxg5
{[%clk 0:00:12.1]} 35. b4 {[%clk 0:00:42.3]} 35... Rb8 {[%clk 0:00:10.2]} 36. b5
{[%clk 0:00:42.2]} 36... Bc5 {[%clk 0:00:07.6]} 37. Rb1 {[%clk 0:00:37.2]} 37...
Bd4 {[%clk 0:00:05.7]} 38. Ra6 {[%clk 0:00:34.6]} 38... Bb6 {[%clk 0:00:03.5]}
39. g3 {[%clk 0:00:29.7]} 39... Kh6 {[%clk 0:00:02.6]} 40. Kg2 {[%clk
0:00:28.6]} 40... Kh5 {[%clk 0:00:02.6]} 41. g4+ {[%clk 0:00:26.8]} 41... Kh6
{[%clk 0:00:02.4]} 42. Rba1 {[%clk 0:00:16.2]} 42... e4 {[%clk 0:00:02.5]} 43.
Ra8 {[%clk 0:00:15.5]} 43... Rxa8 {[%clk 0:00:01.2]} 44. Rxa8 {[%clk 0:00:14.9]}
44... Kh7 {[%clk 0:00:02.1]} 45. Rb8 {[%clk 0:00:13.9]} 45... Ba7 {[%clk
0:00:01.1]} 46. Rb7 {[%clk 0:00:13.8]} 46... Bd4 {[%clk 0:00:01.7]} 47. Re7
{[%clk 0:00:12.6]} 47... e3 {[%clk 0:00:01.7]} 48. Re8 {[%clk 0:00:12.3]} 48...
Kh6 {[%clk 0:00:01.9]} 49. Rh8# {[%clk 0:00:11.6]} 1-0

[Event "*** Titled Tuesday Blitz"]
[Site "Chess.com"]
[Date "2020.11.24"]
[Round "11"]
[White "verdest"]
[Black "PowerThinking2650"]
[Result "0-1"]
[WhiteElo "2622"]
[BlackElo "2420"]
[TimeControl "180+1"]
[EndTime "12:25:12 PST"]
[Termination "PowerThinking2650 won by resignation"]

1. d4 {[%clk 0:03:00.9]} 1... Nf6 {[%clk 0:02:59.5]} 2. c4 {[%clk 0:03:00.3]}
2... g6 {[%clk 0:02:59.8]} 3. Nf3 {[%clk 0:02:58.4]} 3... Bg7 {[%clk 0:03:00.1]}
4. g3 {[%clk 0:02:57.8]} 4... O-O {[%clk 0:03:00.1]} 5. Bg2 {[%clk 0:02:57.8]}
5... d6 {[%clk 0:03:00.7]} 6. O-O {[%clk 0:02:57.7]} 6... Nbd7 {[%clk
0:03:01.3]} 7. Nc3 {[%clk 0:02:56.9]} 7... e5 {[%clk 0:03:01.8]} 8. e4 {[%clk
0:02:57.1]} 8... exd4 {[%clk 0:03:01.1]} 9. Nxd4 {[%clk 0:02:58]} 9... Re8
{[%clk 0:03:01.7]} 10. h3 {[%clk 0:02:57.5]} 10... Nc5 {[%clk 0:03:02.1]} 11.
Qc2 {[%clk 0:02:54.3]} 11... Bd7 {[%clk 0:03:01.9]} 12. Rd1 {[%clk 0:02:52.8]}
12... Qc8 {[%clk 0:03:00.3]} 13. Kh2 {[%clk 0:02:52.3]} 13... Re5 {[%clk
0:03:00.2]} 14. g4 {[%clk 0:02:44.8]} 14... Bxg4 {[%clk 0:02:37]} 15. hxg4
{[%clk 0:02:43.2]} 15... Qxg4 {[%clk 0:02:36.7]} 16. Qe2 {[%clk 0:02:30.9]}
16... Qh4+ {[%clk 0:02:05.7]} 17. Kg1 {[%clk 0:02:29.2]} 17... Ng4 {[%clk
0:01:16.8]} 18. Nf3 {[%clk 0:02:26]} 18... Qh5 {[%clk 0:01:16.7]} 19. Bf4 {[%clk
0:02:21.5]} 19... Re6 {[%clk 0:01:06.2]} 20. Bg3 {[%clk 0:02:19.7]} 20... Rae8
{[%clk 0:01:01.3]} 21. Nh2 {[%clk 0:02:12.8]} 21... f5 {[%clk 0:00:53.6]} 22.
Nxg4 {[%clk 0:02:10.7]} 22... fxg4 {[%clk 0:00:49]} 23. Nd5 {[%clk 0:02:08.8]}
23... Nxe4 {[%clk 0:00:45]} 24. Nf4 {[%clk 0:01:52.5]} 24... Nxg3 {[%clk
0:00:44.5]} 25. Qxe6+ {[%clk 0:01:51.7]} 25... Rxe6 {[%clk 0:00:42.8]} 26. Nxh5
{[%clk 0:01:51.7]} 26... Nxh5 {[%clk 0:00:34.6]} 27. Bd5 {[%clk 0:01:51.5]}
27... Kf7 {[%clk 0:00:32.1]} 28. Re1 {[%clk 0:01:49.7]} 28... Be5 {[%clk
0:00:30.2]} 29. Re4 {[%clk 0:01:43.5]} 29... Nf6 {[%clk 0:00:27.1]} 30. Bxe6+
{[%clk 0:01:43.7]} 30... Kxe6 {[%clk 0:00:27.5]} 31. Re2 {[%clk 0:01:44.6]}
31... h5 {[%clk 0:00:24.3]} 32. Rf1 {[%clk 0:01:41.9]} 32... h4 {[%clk
0:00:23.2]} 33. f4 {[%clk 0:01:41.7]} 33... gxf3 {[%clk 0:00:21.3]} 34. Rxf3
{[%clk 0:01:41.7]} 34... g5 {[%clk 0:00:21.5]} 35. c5 {[%clk 0:01:36.7]} 35...
g4 {[%clk 0:00:20.6]} 36. Rb3 {[%clk 0:01:33.3]} 36... b6 {[%clk 0:00:19.4]} 37.
cxd6 {[%clk 0:01:30.9]} 37... cxd6 {[%clk 0:00:19]} 38. Rb4 {[%clk 0:01:24.5]}
38... Kf5 {[%clk 0:00:18.5]} 39. Rf2+ {[%clk 0:01:23]} 39... Kg5 {[%clk
0:00:18.4]} 40. Rc4 {[%clk 0:00:47.1]} 40... h3 {[%clk 0:00:17.5]} 41. Re2
{[%clk 0:00:32.2]} 41... Nh5 {[%clk 0:00:14.9]} 42. Ree4 {[%clk 0:00:28.7]}
42... Nf4 {[%clk 0:00:13.3]} 43. Rc2 {[%clk 0:00:16.5]} 43... Kf5 {[%clk
0:00:13.2]} 44. Re1 {[%clk 0:00:15.2]} 44... g3 {[%clk 0:00:12.9]} 45. Rf1
{[%clk 0:00:12.2]} 45... Kg4 {[%clk 0:00:12.6]} 46. Rc4 {[%clk 0:00:10.9]} 46...
h2+ {[%clk 0:00:11.9]} 0-1

[Event "*** Titled Tuesday Blitz"]
[Site "Chess.com"]
[Date "2020.11.24"]
[Round "11"]
[White "juancruzarias"]
[Black "Ural_bogatyr"]
[Result "1-0"]
[WhiteElo "2541"]
[BlackElo "2409"]
[TimeControl "180+1"]
[EndTime "12:25:14 PST"]
[Termination "juancruzarias won by checkmate"]

1. b3 {[%clk 0:03:00.9]} 1... d5 {[%clk 0:02:54.8]} 2. Bb2 {[%clk 0:03:01.1]}
2... Nd7 {[%clk 0:02:52.4]} 3. e3 {[%clk 0:03:01.6]} 3... e5 {[%clk 0:02:52.6]}
4. Nf3 {[%clk 0:03:01.2]} 4... Bd6 {[%clk 0:02:52.3]} 5. d4 {[%clk 0:03:00.5]}
5... e4 {[%clk 0:02:51.9]} 6. Nfd2 {[%clk 0:03:01.1]} 6... Ngf6 {[%clk
0:02:51.7]} 7. c4 {[%clk 0:03:01.6]} 7... c6 {[%clk 0:02:49]} 8. Ba3 {[%clk
0:03:01.8]} 8... Bxa3 {[%clk 0:02:46.5]} 9. Nxa3 {[%clk 0:03:02.7]} 9... O-O
{[%clk 0:02:46.5]} 10. Be2 {[%clk 0:03:02.1]} 10... a6 {[%clk 0:02:39.2]} 11.
Nc2 {[%clk 0:03:02.2]} 11... b5 {[%clk 0:02:38.3]} 12. O-O {[%clk 0:03:01.8]}
12... Re8 {[%clk 0:02:32.1]} 13. f4 {[%clk 0:02:58.5]} 13... exf3 {[%clk
0:02:29.2]} 14. Bxf3 {[%clk 0:02:57.9]} 14... bxc4 {[%clk 0:02:26.2]} 15. bxc4
{[%clk 0:02:57.6]} 15... a5 {[%clk 0:02:26.5]} 16. Re1 {[%clk 0:02:40.9]} 16...
Ba6 {[%clk 0:02:24.7]} 17. e4 {[%clk 0:02:35.4]} 17... dxc4 {[%clk 0:02:18.7]}
18. Nb1 {[%clk 0:02:29.1]} 18... Nf8 {[%clk 0:02:04.5]} 19. Nc3 {[%clk
0:02:28.5]} 19... Ne6 {[%clk 0:02:01.6]} 20. Qd2 {[%clk 0:02:26.6]} 20... Qd7
{[%clk 0:01:54.7]} 21. Rad1 {[%clk 0:02:25.4]} 21... Rad8 {[%clk 0:01:54.1]} 22.
h3 {[%clk 0:02:20.3]} 22... Qa7 {[%clk 0:01:45.2]} 23. Qf2 {[%clk 0:02:17.9]}
23... Nf4 {[%clk 0:01:36.8]} 24. e5 {[%clk 0:02:06.2]} 24... N6d5 {[%clk
0:01:34.2]} 25. Bxd5 {[%clk 0:02:05.7]} 25... Nxd5 {[%clk 0:01:33.4]} 26. Ne4
{[%clk 0:02:01.7]} 26... Nb4 {[%clk 0:01:28.6]} 27. Nxb4 {[%clk 0:01:48.4]}
27... axb4 {[%clk 0:01:29.5]} 28. Nc5 {[%clk 0:01:33.3]} 28... Bc8 {[%clk
0:01:23.2]} 29. Qd2 {[%clk 0:01:20.9]} 29... c3 {[%clk 0:01:18.4]} 30. Qc2
{[%clk 0:01:14.7]} 30... Be6 {[%clk 0:01:15.1]} 31. a4 {[%clk 0:01:14.3]} 31...
bxa3 {[%clk 0:01:10.1]} 32. Qxc3 {[%clk 0:01:14]} 32... Bd5 {[%clk 0:01:05.7]}
33. Ra1 {[%clk 0:01:10.5]} 33... a2 {[%clk 0:01:05.9]} 34. Kh2 {[%clk
0:01:06.8]} 34... Rb8 {[%clk 0:01:03.2]} 35. Rf1 {[%clk 0:00:46]} 35... Rb5
{[%clk 0:00:58]} 36. h4 {[%clk 0:00:42.5]} 36... Reb8 {[%clk 0:00:56.4]} 37. Qh3
{[%clk 0:00:37.5]} 37... Rb2 {[%clk 0:00:51.5]} 38. Rg1 {[%clk 0:00:37.5]} 38...
Rb1 {[%clk 0:00:46.5]} 39. Rgxb1 {[%clk 0:00:31.8]} 39... axb1=Q {[%clk
0:00:40.5]} 40. Rxb1 {[%clk 0:00:30.1]} 40... Rd8 {[%clk 0:00:34.7]} 41. Qg4
{[%clk 0:00:27.3]} 41... h6 {[%clk 0:00:30.8]} 42. Rb7 {[%clk 0:00:26.1]} 42...
Qa2 {[%clk 0:00:30.2]} 43. Rd7 {[%clk 0:00:25.1]} 43... Rb8 {[%clk 0:00:25.9]}
44. e6 {[%clk 0:00:23.3]} 44... Qf2 {[%clk 0:00:17.2]} 45. e7 {[%clk 0:00:18.4]}
45... f5 {[%clk 0:00:05.5]} 46. e8=Q+ {[%clk 0:00:16.2]} 46... Rxe8 {[%clk
0:00:05]} 47. Qxg7# {[%clk 0:00:16.7]} 1-0

[Event "*** Titled Tuesday Blitz"]
[Site "Chess.com"]
[Date "2020.11.24"]
[Round "11"]
[White "Legendinunknown"]
[Black "ChessicallyInclined"]
[Result "1-0"]
[WhiteElo "2679"]
[BlackElo "2557"]
[TimeControl "180+1"]
[EndTime "12:25:17 PST"]
[Termination "Legendinunknown won by resignation"]

1. d4 {[%clk 0:03:00.9]} 1... Nf6 {[%clk 0:03:00.1]} 2. c4 {[%clk 0:02:59.9]}
2... e6 {[%clk 0:03:00.2]} 3. Nc3 {[%clk 0:02:57.9]} 3... Bb4 {[%clk 0:03:00.2]}
4. f3 {[%clk 0:02:56.7]} 4... c5 {[%clk 0:02:59.2]} 5. d5 {[%clk 0:02:56.3]}
5... d6 {[%clk 0:02:58]} 6. e4 {[%clk 0:02:55.5]} 6... b5 {[%clk 0:02:56.9]} 7.
Ne2 {[%clk 0:02:44.2]} 7... bxc4 {[%clk 0:02:52.5]} 8. Nf4 {[%clk 0:02:43.8]}
8... e5 {[%clk 0:02:46.5]} 9. Ne2 {[%clk 0:02:42.4]} 9... O-O {[%clk 0:02:44.8]}
10. Ng3 {[%clk 0:02:41]} 10... Bxc3+ {[%clk 0:02:45]} 11. bxc3 {[%clk
0:02:40.1]} 11... Nbd7 {[%clk 0:02:44.9]} 12. Be3 {[%clk 0:02:39.6]} 12... Nb6
{[%clk 0:02:43.9]} 13. Qd2 {[%clk 0:02:38.4]} 13... Ne8 {[%clk 0:02:35.5]} 14.
Be2 {[%clk 0:02:33.9]} 14... Kh8 {[%clk 0:02:19.4]} 15. O-O {[%clk 0:02:32.3]}
15... f5 {[%clk 0:02:14.6]} 16. exf5 {[%clk 0:02:31.2]} 16... Bxf5 {[%clk
0:02:13.6]} 17. Nxf5 {[%clk 0:02:26.2]} 17... Rxf5 {[%clk 0:02:14.5]} 18. a4
{[%clk 0:02:23.8]} 18... Nc7 {[%clk 0:01:56.6]} 19. a5 {[%clk 0:02:08]} 19...
Nbxd5 {[%clk 0:01:56.2]} 20. Bxc4 {[%clk 0:02:07.7]} 20... Nxe3 {[%clk 0:01:51]}
21. Qxe3 {[%clk 0:02:08.6]} 21... Rf4 {[%clk 0:01:42.3]} 22. Be2 {[%clk
0:01:57.5]} 22... Nd5 {[%clk 0:01:20.1]} 23. Qd2 {[%clk 0:01:55]} 23... Ne7
{[%clk 0:01:09]} 24. Rfd1 {[%clk 0:01:51.6]} 24... d5 {[%clk 0:01:06.6]} 25. Qe3
{[%clk 0:01:49.2]} 25... Qd6 {[%clk 0:01:04.8]} 26. Rab1 {[%clk 0:01:46.2]}
26... Nf5 {[%clk 0:01:00.2]} 27. Qc1 {[%clk 0:01:44.5]} 27... e4 {[%clk
0:00:51.6]} 28. fxe4 {[%clk 0:01:36.4]} 28... Rxe4 {[%clk 0:00:49]} 29. Bf3
{[%clk 0:01:36.1]} 29... Rh4 {[%clk 0:00:48.9]} 30. h3 {[%clk 0:01:28.3]} 30...
Ne7 {[%clk 0:00:28.2]} 31. Qg5 {[%clk 0:01:24.7]} 31... Qf6 {[%clk 0:00:22.7]}
32. Qxf6 {[%clk 0:01:23]} 32... gxf6 {[%clk 0:00:23.6]} 33. Bxd5 {[%clk
0:01:22.1]} 33... Nxd5 {[%clk 0:00:23.5]} 34. Rxd5 {[%clk 0:01:21.2]} 34... Rc4
{[%clk 0:00:23.8]} 35. Rb7 {[%clk 0:01:20.1]} 35... Rxc3 {[%clk 0:00:20.1]} 36.
Rdd7 {[%clk 0:01:19.9]} 36... Ra3 {[%clk 0:00:14.9]} 37. Rxh7+ {[%clk 0:01:19]}
37... Kg8 {[%clk 0:00:15.3]} 38. Rbg7+ {[%clk 0:01:17.6]} 38... Kf8 {[%clk
0:00:15.5]} 39. Rc7 {[%clk 0:01:16.7]} 39... Kg8 {[%clk 0:00:14.8]} 40. Rcg7+
{[%clk 0:00:44.2]} 40... Kf8 {[%clk 0:00:14.6]} 41. Rxa7 {[%clk 0:00:44.2]}
41... Rxa7 {[%clk 0:00:13.6]} 42. Rxa7 {[%clk 0:00:45.1]} 42... c4 {[%clk
0:00:13.5]} 43. Rc7 {[%clk 0:00:44.7]} 43... Rxa5 {[%clk 0:00:12.7]} 44. Rxc4
{[%clk 0:00:44]} 44... Kg7 {[%clk 0:00:13.3]} 45. Kh2 {[%clk 0:00:44]} 45... Kg6
{[%clk 0:00:13.6]} 46. h4 {[%clk 0:00:43.8]} 46... Ra3 {[%clk 0:00:13.6]} 47. g3
{[%clk 0:00:43.7]} 47... Rb3 {[%clk 0:00:12.6]} 48. Kh3 {[%clk 0:00:43.5]} 48...
Ra3 {[%clk 0:00:13.2]} 49. Kg4 {[%clk 0:00:43]} 49... Rb3 {[%clk 0:00:12.9]} 50.
Kf4 {[%clk 0:00:42.1]} 50... Ra3 {[%clk 0:00:13]} 51. g4 {[%clk 0:00:41.2]}
51... Ra5 {[%clk 0:00:13.2]} 52. h5+ {[%clk 0:00:41]} 52... Kh6 {[%clk
0:00:11.4]} 53. Re4 {[%clk 0:00:39.7]} 53... Rb5 {[%clk 0:00:08.9]} 54. Re8
{[%clk 0:00:34.8]} 54... Kg7 {[%clk 0:00:08.8]} 55. Re7+ {[%clk 0:00:34.6]}
55... Kg8 {[%clk 0:00:07.8]} 56. h6 {[%clk 0:00:32.6]} 56... Rg5 {[%clk
0:00:06.4]} 57. Rd7 {[%clk 0:00:31.7]} 57... Kf8 {[%clk 0:00:05.3]} 58. h7
{[%clk 0:00:31.5]} 1-0

[Event "*** Titled Tuesday Blitz"]
[Site "Chess.com"]
[Date "2020.11.24"]
[Round "11"]
[White "Harsha_Bharathakoti"]
[Black "Sebastian"]
[Result "1-0"]
[WhiteElo "2737"]
[BlackElo "2889"]
[TimeControl "180+1"]
[EndTime "12:25:18 PST"]
[Termination "Harsha_Bharathakoti won on time"]

1. d4 {[%clk 0:03:00.9]} 1... Nf6 {[%clk 0:02:33.1]} 2. c4 {[%clk 0:02:58.7]}
2... e6 {[%clk 0:02:33.2]} 3. Nc3 {[%clk 0:02:57.2]} 3... Bb4 {[%clk 0:02:32.8]}
4. f3 {[%clk 0:02:57.5]} 4... d5 {[%clk 0:02:28.1]} 5. a3 {[%clk 0:02:56.8]}
5... Bxc3+ {[%clk 0:02:18.6]} 6. bxc3 {[%clk 0:02:56.9]} 6... c5 {[%clk
0:02:19.5]} 7. cxd5 {[%clk 0:02:47.9]} 7... Nxd5 {[%clk 0:02:18.9]} 8. dxc5
{[%clk 0:02:43.3]} 8... Qa5 {[%clk 0:02:18.8]} 9. e4 {[%clk 0:02:33.6]} 9... Nf6
{[%clk 0:02:18.3]} 10. Be3 {[%clk 0:02:17.3]} 10... O-O {[%clk 0:02:17.5]} 11.
Qb3 {[%clk 0:02:10.6]} 11... Nfd7 {[%clk 0:02:12.1]} 12. Qb4 {[%clk 0:01:42.9]}
12... Qc7 {[%clk 0:02:09.7]} 13. Bb5 {[%clk 0:01:43]} 13... Na6 {[%clk
0:01:38.9]} 14. Bxa6 {[%clk 0:01:37.8]} 14... bxa6 {[%clk 0:01:38.7]} 15. Ne2
{[%clk 0:01:37.4]} 15... a5 {[%clk 0:01:31.9]} 16. Qd4 {[%clk 0:01:23.6]} 16...
Ba6 {[%clk 0:01:19.6]} 17. Qd6 {[%clk 0:01:14.1]} 17... Qb7 {[%clk 0:00:30.2]}
18. Rd1 {[%clk 0:00:54.1]} 18... Nb8 {[%clk 0:00:15.8]} 19. Nd4 {[%clk
0:00:29.9]} 19... Rc8 {[%clk 0:00:14.8]} 20. Kf2 {[%clk 0:00:18.5]} 20... Nc6
{[%clk 0:00:14.3]} 21. Nxc6 {[%clk 0:00:16.8]} 21... Qxc6 {[%clk 0:00:13.5]} 22.
Qxc6 {[%clk 0:00:16.9]} 22... Rxc6 {[%clk 0:00:13.4]} 23. Rd7 {[%clk 0:00:16.6]}
23... Rac8 {[%clk 0:00:14]} 24. Rhd1 {[%clk 0:00:16.7]} 24... h6 {[%clk
0:00:12.4]} 25. Rxa7 {[%clk 0:00:16.9]} 25... a4 {[%clk 0:00:08.9]} 26. Rdd7
{[%clk 0:00:16.9]} 26... Rf8 {[%clk 0:00:08.6]} 27. Bf4 {[%clk 0:00:09.3]} 27...
Bc8 {[%clk 0:00:01.5]} 28. Rdc7 {[%clk 0:00:06.7]} 28... Rxc7 {[%clk 0:00:01.7]}
29. Rxc7 {[%clk 0:00:07.6]} 29... Ba6 {[%clk 0:00:01.8]} 30. c6 {[%clk
0:00:04.1]} 30... Rc8 {[%clk 0:00:02]} 31. Rxc8+ {[%clk 0:00:02.7]} 31... Bxc8
{[%clk 0:00:02.9]} 32. Bd6 {[%clk 0:00:02.9]} 32... f6 {[%clk 0:00:02.9]} 33.
Ke3 {[%clk 0:00:03.6]} 33... e5 {[%clk 0:00:03.4]} 34. Kd3 {[%clk 0:00:03.1]}
34... Kf7 {[%clk 0:00:03.3]} 35. Kc4 {[%clk 0:00:03.3]} 35... Ke6 {[%clk
0:00:03.8]} 36. Kc5 {[%clk 0:00:04]} 36... h5 {[%clk 0:00:03.8]} 37. h4 {[%clk
0:00:03.7]} 37... g6 {[%clk 0:00:04.1]} 38. Bf8 {[%clk 0:00:03.9]} 38... f5
{[%clk 0:00:04.3]} 39. Kb6 {[%clk 0:00:03.6]} 39... fxe4 {[%clk 0:00:02.8]} 40.
fxe4 {[%clk 0:00:04.5]} 40... Kf7 {[%clk 0:00:02.1]} 41. Bd6 {[%clk 0:00:04.5]}
41... Ke8 {[%clk 0:00:01.8]} 42. Bxe5 {[%clk 0:00:04.4]} 42... Bg4 {[%clk
0:00:01.9]} 43. Bd6 {[%clk 0:00:02.6]} 43... Be6 {[%clk 0:00:01.4]} 44. e5
{[%clk 0:00:02.8]} 44... Bf5 {[%clk 0:00:01.4]} 45. Kb5 {[%clk 0:00:03.1]} 1-0